Cogmind - Beta 10.2 @@@ ROGUE MODE // 2020.12.05 @ 19:19:39 // Halloween2020/ForbiddenLore Player: CrossedViper Result: Destroyed by P1-3CE with P1-3CE's Gatling Flakker Performance ------------- Evolutions (1) 500 Regions Visited (6) 1200 Robots Destroyed (32) 160 Value Destroyed (726) 726 Prototype IDs (28) 560 Alien Tech Used (0) 0 Bonus (107) 107 TOTAL SCORE: 3253 Bonus ------- High Alert Combat Kills 24 Follower Combat Kills 298 Aligned with FarCom 300 Friendly Fire -515 Cogmind --------- Core Integrity 0/400 Matter 206/300 Energy 310/310 System Corruption 0% Temperature Cool (0) Movement Core (900) Ox17 Location -8/Mines Parts ------- > --- POWER (1) -------- Reinforced Fission Core > --- PROPULSION (2) --- (None) > --- UTILITY (4) ------ Experimental Heat Sink Medium Storage Unit Large Storage Unit > --- WEAPON (2) ------- 8R-AWN's Boregun Scythe > --- INVENTORY (14) --- Large Storage Unit Large Storage Unit Hacking Suite Hacking Suite AS-neutralizer No. 17b Heavy Assault Rifle Rocket Launcher Rocket Launcher Plasma Flamer Katana Scythe Scythe Scythe Peak State ------------ > --- POWER ------------ Reinforced Fission Core > --- PROPULSION ------- Aluminum Leg > --- UTILITY ---------- Experimental Heat Sink Medium Storage Unit Large Storage Unit AS-neutralizer No. 17b > --- WEAPON ----------- Heavy Assault Rifle 8R-AWN's Boregun > --- INVENTORY -------- Large Storage Unit Large Storage Unit Hacking Suite Hacking Suite Latent Energy Streamer Guided Plasma Cannon Rocket Launcher Rocket Launcher Plasma Flamer Katana Scythe Scythe Scythe Scythe [Rating: 38] Favorites ----------- Power Ion Engine Engine Ion Engine Power Core Reinforced Fission Core Propulsion Aluminum Leg Leg Aluminum Leg Flight Unit Cesium-ion Thruster Utility Heat Sink Device Heat Sink Storage Large Storage Unit Hackware Hacking Suite Protection Core Shielding Weapon Heavy Assault Rifle Energy Gun Medium Laser Energy Cannon Light EM Pulse Cannon Ballistic Gun Heavy Assault Rifle Launcher Rocket Launcher Slashing Weapon Scythe Piercing Weapon Makeshift Spear Build | -11 -10 -10 -9 -9 -9 -8 ------- Run | Scr Mat Min Mat Min Exi Min Slots Evolved 2 | . . . 2 . . . Power . | . . . . . . . Propulsion . | . . . . . . . Utility 2 | . . . 2 . . . Weapon . | . . . . . . . Parts Attached 43 | . 6 4 18 4 9 2 Power 5 | . . 1 2 1 1 . Engine 4 | . . 1 2 1 . . Core 1 | . . . . . 1 . Reactor . | . . . . . . . Propulsion 8 | . 1 1 5 . . 1 Treads . | . . . . . . . Leg 7 | . 1 1 5 . . . Wheel . | . . . . . . . Hover . | . . . . . . . Flight 1 | . . . . . . 1 Utility 12 | . 2 . 7 1 2 . Device 6 | . 2 . 2 . 2 . Storage 3 | . . . 3 . . . Processor . | . . . . . . . Hackware 1 | . . . 1 . . . Protection 2 | . . . 1 1 . . Artifact . | . . . . . . . Weapon 18 | . 3 2 4 2 6 1 Energy Gun . | . . . . . . . Energy Cannon 4 | . 3 . 1 . . . Ballistic Gun 7 | . . 1 2 1 2 1 Ballistic Cannon . | . . . . . . . Launcher 2 | . . . . 1 1 . Special Weapon . | . . . . . . . Impact Weapon . | . . . . . . . Slashing Weapon 4 | . . . 1 . 3 . Piercing Weapon 1 | . . 1 . . . . Special Melee Weapon . | . . . . . . . Unidentified Prototypes 3 | . . . . . 3 . Parts Lost 12 | . 1 1 6 1 1 2 Power 2 | . . . 1 1 . . Propulsion 4 | . . . 1 . 1 2 Utility 2 | . . . 2 . . . Weapon 4 | . 1 1 2 . . . Highest Loss Streak 2 | . 1 1 2 1 1 2 Average Slot Usage (%) 95 | . 98 100 93 98 96 80 Engine 10 | . 14 14 10 9 7 . Leg 22 | . 28 28 21 22 18 11 Device 15 | . 13 14 19 12 13 11 Storage 17 | . 14 14 15 22 22 22 Protection 3 | . . . 2 9 8 . Energy Cannon 9 | . 27 9 5 11 5 . Ballistic Gun 9 | . . 10 13 9 5 1 Slashing Weapon 1 | . . . . . 9 11 Piercing Weapon 2 | . . 8 2 . . . Naked Turns . | . . . . . . . Heaviest Build 57 | 12 16 16 38 38 57 51 Greatest Support 30 | 20 20 30 30 20 20 10 Greatest Overweight (x) 5 | . . . 1 1 5 5 Average Overweight (x) . | . . . . 1 1 5 Largest Inventory Capacity 14 | . 6 6 14 14 14 14 Average Capacity 10 | . 6 6 9 14 14 14 Most Carried 14 | . 6 6 14 14 14 14 Average Carried 9 | . 5 5 8 14 13 13 Final Capacity 14 | 6 6 6 14 14 14 14 Final Carried 14 | 6 5 6 14 14 13 13 Class Distribution -------------------- 82% | Scavenger-Mutant 17% | Mutant Dominant Class ---------------- Mutant | -10/Materials Scavenger-Mutant | -10/Mines Scavenger-Mutant | -9/Materials Scavenger-Mutant | -9/Mines Scavenger-Mutant | -9/Exiles Scavenger-Mutant | -8/Mines Resources | -11 -10 -10 -9 -9 -9 -8 ----------- Run | Scr Mat Min Mat Min Exi Min Matter Collected 795 | 172 83 47 316 85 92 . Remotely . | . . . . . . . Salvage Created 1274 | . 228 153 652 122 119 . Parts 85 | . 14 19 40 8 4 . Haulers Intercepted 4 | . 1 . 3 . . . Recyclers Shooed . | . . . . . . . Parts Field Recycled . | . . . . . . . Retrieved Matter . | . . . . . . . Parts Self-Destructed . | . . . . . . . Prevented . | . . . . . . . Kills | -11 -10 -10 -9 -9 -9 -8 ------- Run | Scr Mat Min Mat Min Exi Min Combat Hostiles Destroyed 21 | . 5 5 9 1 1 . Melee 6 | . . 1 4 . 1 . Guns 7 | . . 2 5 . . . Cannons 7 | . 5 2 . . . . AOE 1 | . . . . 1 . . Classes Destroyed 9 | . 3 1 3 2 . . Worker 1 | . . . . 1 . . Builder 3 | . . 2 . 1 . . Hauler 4 | . 1 . 3 . . . Recycler 1 | . . . . 1 . . Operator 1 | . . . 1 . . . Swarmer 6 | . 1 4 1 . . . Grunt 11 | . 4 1 5 1 . . Duelist 1 | . . . 1 . . . Sentry 2 | . . . 2 . . . Thug 1 | . . . 1 . . . Best Kill Streak 3 | . 3 3 3 3 1 . Combat Bots Only 3 | . 3 3 2 1 1 . Max Kills in Single Turn 3 | . 2 1 2 3 1 . Gunslinging . | . . . . . . . Exploded 1 | . . . . 1 . . Melee 1 | . . 1 1 . 1 . Uniques/NPCs Destroyed 1 | . . . . . 1 . 8R-AWN (-9/Exiles) Combat | -11 -10 -10 -9 -9 -9 -8 -------- Run | Scr Mat Min Mat Min Exi Min Damage Taken 2140 | . 319 199 834 127 154 507 Core 500 | . 52 42 179 11 19 197 Absorbed by Shields . | . . . . . . . Core Remaining (%) 81 | 100 . 62 . . . . Volleys Fired 80 | . 17 9 36 9 4 5 Largest 2 | . 2 2 2 2 1 1 Hottest 120 | . 120 120 79 89 33 30 Shots Fired 130 | . 27 15 65 14 4 5 Gun 68 | . . 7 52 4 . 5 Cannon 53 | . 27 8 13 5 . . Launcher 9 | . . . . 5 4 . Special . | . . . . . . . Kinetic 68 | . . 7 52 4 . 5 Thermal 35 | . 27 8 . . . . Explosive 9 | . . . . 5 4 . Electromagnetic 18 | . . . 13 5 . . Robot Hit Streak 14 | . 10 3 5 9 . 14 Robot Miss Streak 4 | . 3 4 3 1 . . Penetration Max . | . . . . . . . Secondary Targets 1 | . . . 1 . . . Max Gunslinging Chain 1 | . . . 1 . . . Shots Hit Robots 99 | . 17 10 52 10 5 5 Core Hits 39 | . 7 7 16 6 3 . Critical Hits 1 | . . . . . . 1 Critical Kills . | . . . . . . . Critical Parts Destroyed 1 | . . . . . . 1 Melee Attacks 22 | . . 3 14 . 5 . Impact . | . . . . . . . Slashing 5 | . . . . . 5 . Piercing 17 | . . 3 14 . . . Sneak Attacks 3 | . . 2 . . 1 . Combat Hostiles . | . . . . . . . Follow-up Attacks 1 | . . . . . 1 . Damage Inflicted 2503 | . 335 336 1010 491 280 51 Guns 574 | . . 16 440 67 . 51 Cannons 638 | . 335 71 187 45 . . Explosions 450 | . . . 71 379 . . Melee 841 | . . 249 312 . 280 . Ramming . | . . . . . . . Kinetic 574 | . . 16 440 67 . 51 Thermal 569 | . 335 71 71 92 . . Explosive 287 | . . . . 287 . . Electromagnetic 232 | . . . 187 45 . . Impact . | . . . . . . . Slashing 280 | . . . . . 280 . Piercing 561 | . . 249 312 . . . Highest Corruption . | . . . . . . . Average Corruption . | . . . . . . . Corruption Purged . | . . . . . . . Overload Shots . | . . . . . . . Overflow Damage 79 | . 14 . 22 43 . . Projectiles 14 | . 14 . . . . . Explosions 43 | . . . . 43 . . Melee 22 | . . . 22 . . . Knockbacks . | . . . . . . . Impact . | . . . . . . . Kinetic . | . . . . . . . Secondary . | . . . . . . . Self-Inflicted Damage 68 | . . . 29 39 . . Shots 2 | . . . 1 1 . . Rammed . | . . . . . . . Targets Rammed . | . . . . . . . Kicked . | . . . . . . . Crushed . | . . . . . . . Highest Temperature 327 | . 327 30 5 5 . . Average Temperature 125 | . 150 15 3 2 . . Received Heat Transfer 561 | . 174 21 318 48 . . Effects 4 | . 4 . . . . . Energy Bleed 1 | . 1 . . . . . Interference 3 | . 3 . . . . . Siege Activations . | . . . . . . . Robots Corrupted 1 | . . . 1 . . . Combat Hostiles . | . . . . . . . Parts Fried 1 | . . . 1 . . . Impact Corruptions . | . . . . . . . Robots Melted . | . . . . . . . Combat Hostiles . | . . . . . . . Parts Melted 3 | . 1 1 1 . . . Heat Transferred 951 | . 703 148 50 50 . . Parts Sabotaged . | . . . . . . . Parts Stolen . | . . . . . . . Parts Stripped . | . . . . . . . Power Chain Reactions 2 | . . . 1 1 . . Missiles Intercepted . | . . . . . . . Alert | -11 -10 -10 -9 -9 -9 -8 ------- Run | Scr Mat Min Mat Min Exi Min Peak Influence 537 | . 179 335 537 144 . 1 Initial 79 | . . 69 56 79 . . Average 193 | . 92 165 262 120 . . Maximum Alert Level 2 | . . 1 2 . . . Low Security (%) 63 | . 100 64 40 100 . 100 Level 1 31 | . . 35 48 . . . Level 2 5 | . . . 11 . . . Level 3 . | . . . . . . . Level 4 . | . . . . . . . Level 5 . | . . . . . . . High Security . | . . . . . . . Max Security . | . . . . . . . Squads Dispatched 1 | . 1 . . . . . Investigation . | . . . . . . . Extermination . | . . . . . . . Reinforcement 1 | . 1 . . . . . Assault . | . . . . . . . Garrison . | . . . . . . . Intercept . | . . . . . . . Construction Impeded . | . . . . . . . Haulers Reinforced . | . . . . . . . Stealth | -11 -10 -10 -9 -9 -9 -8 --------- Run | Scr Mat Min Mat Min Exi Min Distress Signals 3 | . 2 . 1 . . . Communications Jammed . | . . . . . . . Distress Signals . | . . . . . . . Times Spotted 48 | . 8 11 24 3 1 1 Peak Tracking Total 6 | . 5 4 5 2 6 1 Tactical Retreats 3 | . . . 1 2 . . Traps | -11 -10 -10 -9 -9 -9 -8 ------- Run | Scr Mat Min Mat Min Exi Min Traps Triggered . | . . . . . . . Indirectly . | . . . . . . . Trap Hack Attempts . | . . . . . . . Triggered . | . . . . . . . Disarmed . | . . . . . . . Reprogrammed . | . . . . . . . Reused 2 | . . . . . 2 . Traps Extracted . | . . . . . . . Installed 2 | . . . . . 2 . Triggered . | . . . . . . . Machines | -11 -10 -10 -9 -9 -9 -8 ---------- Run | Scr Mat Min Mat Min Exi Min Machines Disabled 3 | . 1 1 1 . . . Max in Single Turn 1 | . 1 1 . . . . Machines Sabotaged . | . . . . . . . Garrisons Compromised . | . . . . . . . Overloaded Fab Kills . | . . . . . . . Fab Network Shutdowns . | . . . . . . . Hacking | -11 -10 -10 -9 -9 -9 -8 --------- Run | Scr Mat Min Mat Min Exi Min Machines Accessed 9 | . 2 . 6 . 1 . Terminals 8 | . 2 . 6 . . . Fabricators . | . . . . . . . Repair Stations . | . . . . . . . Recycling Units . | . . . . . . . Scanalyzers . | . . . . . . . Garrison Access . | . . . . . . . Total Hacks 23 | . 5 . 17 . 1 . Successful 11 | . 3 . 7 . 1 . Failed 12 | . 2 . 10 . . . Catastrophic . | . . . . . . . Database Lockouts . | . . . . . . . Manual 15 | . . . 14 . 1 . Terminals 22 | . 5 . 17 . . . Fabricators . | . . . . . . . Repair Stations . | . . . . . . . Recycling Units . | . . . . . . . Scanalyzers . | . . . . . . . Garrison Access . | . . . . . . . Terminal Hacks 8 | . 3 . 4 . 1 . Prototype ID Bank 1 | . 1 . . . . . Level Access Points 1 | . 1 . . . . . Branch Access Points 1 | . . . 1 . . . Terminal Index 1 | . . . 1 . . . Alert Level 1 | . . . 1 . . . Unreport Threat 1 | . . . 1 . . . Locate Traps 1 | . 1 . . . . . EX-Prototype ID Bank 1 | . . . . . 1 . Fabricator Hacks . | . . . . . . . Repair Station Hacks . | . . . . . . . Recycling Unit Hacks . | . . . . . . . Scanalyzer . | . . . . . . . Garrison Access Hacks . | . . . . . . . Unauthorized Hacks 3 | . . . 3 . . . Terminals 3 | . . . 3 . . . Botnet 3 | . . . 3 . . . Fabricators . | . . . . . . . Repair Stations . | . . . . . . . Recycling Units . | . . . . . . . Scanalyzers . | . . . . . . . Garrison Access . | . . . . . . . Data Cores Recovered . | . . . . . . . Used . | . . . . . . . Hacking Detections 7 | . 1 . 6 . . . Full Trace Events 1 | . . . 1 . . . Feedback Events . | . . . . . . . Feedback Blocked . | . . . . . . . Robot Schematics Acquired . | . . . . . . . Robots Built . | . . . . . . . Matter . | . . . . . . . Time . | . . . . . . . Total Robot Build Rating . | . . . . . . . Part Schematics Acquired . | . . . . . . . Parts Built . | . . . . . . . Matter . | . . . . . . . Time . | . . . . . . . Total Part Build Rating . | . . . . . . . Parts Repaired . | . . . . . . . Time . | . . . . . . . Parts Recycled . | . . . . . . . Recycled Matter . | . . . . . . . Retrieved Matter . | . . . . . . . Retrieved Components . | . . . . . . . Parts Scanalyzed . | . . . . . . . Part Schematics Acquired . | . . . . . . . Parts Damaged . | . . . . . . . Bothacking | -11 -10 -10 -9 -9 -9 -8 ------------ Run | Scr Mat Min Mat Min Exi Min Used RIF Installer . | . . . . . . . Robots Hacked . | . . . . . . . Non-combat . | . . . . . . . Combat . | . . . . . . . Robot Hacks Applied . | . . . . . . . Relay Couplers Released . | . . . . . . . Robots Rewired . | . . . . . . . Allies Hacked . | . . . . . . . Hacks Repelled . | . . . . . . . Allies | -11 -10 -10 -9 -9 -9 -8 -------- Run | Scr Mat Min Mat Min Exi Min Total Allies 2 | . . 2 . . . . Largest Group 2 | . . 2 1 . . . Highest-Rated Group 49 | . . 49 31 . . . Highest-Rated Ally 31 | . . 31 31 . . . Total Orders . | . . . . . . . Ally Attacks 66 | . . 9 57 . . . Total Damage 917 | . . 181 736 . . . Kills 18 | . . 6 12 . . . Allies Corrupted . | . . . . . . . Allies Melted . | . . . . . . . Intel | -11 -10 -10 -9 -9 -9 -8 ------- Run | Scr Mat Min Mat Min Exi Min Robot Analysis Total . | . . . . . . . Derelict Logs Recovered 1 | . . . . 1 . . Drone Launches . | . . . . . . . Drone Recoveries . | . . . . . . . Exploration | -11 -10 -10 -9 -9 -9 -8 ------------- Run | Scr Mat Min Mat Min Exi Min Turns Passed 2865 | . 281 546 1159 355 467 57 Spaces Moved 1761 | 1 165 405 705 216 253 16 Core . | . . . . . . . Treads . | . . . . . . . Legs 1761 | 1 165 405 705 216 253 16 Wheels . | . . . . . . . Hover . | . . . . . . . Flight . | . . . . . . . Fastest Speed 120 | 120 120 120 120 150 150 270 Average Speed 141 | 120 120 125 139 150 169 270 Slowest Speed 270 | 120 120 130 150 150 270 270 Overloaded Moves . | . . . . . . . Propulsion Burnouts . | . . . . . . . Robots Hopped . | . . . . . . . Cave-ins Triggered . | . . . . . . . Exploration Rate (%) 40 | 2 31 93 58 47 41 12 Regions Visited 6 Branch Regions 4 Pre-discovered Areas . | . . . . . . . Known Exits Taken 2 | . . 1 1 . . . Unknown Exits Taken 4 | 1 1 . . 1 1 . Scrap Searched 3 | . . 2 . 1 . . Spaces Dug 25 | . . . . . 25 . Terrain Destroyed 62 | . . . 3 23 34 2 Melee . | . . . . . . . Projectile 2 | . . . . . . 2 AOE 60 | . . . 3 23 34 . Terrain Rammed . | . . . . . . . Walls Destroyed . | . . . . . . . Machines Disabled . | . . . . . . . Actions | -11 -10 -10 -9 -9 -9 -8 --------- Run | Scr Mat Min Mat Min Exi Min Total 1995 | . 222 428 804 233 284 24 Wait 33 | . 25 . 6 2 . . Move 1755 | . 164 404 704 215 252 16 Hop . | . . . . . . . Pick Up 28 | . 4 4 15 1 3 1 Fast Attach 18 | . 3 1 8 2 4 . Attach 8 | . 2 1 3 . 1 1 Detach 2 | . . . 1 . 1 . Swap 17 | . 1 2 7 2 4 1 Drop 31 | . 6 4 10 2 9 . Fire 80 | . 17 9 36 9 4 5 Melee 21 | . . 3 14 . 4 . Ram . | . . . . . . . Kick . | . . . . . . . Crush . | . . . . . . . Escape Stasis . | . . . . . . . Rewire . | . . . . . . . Trap 2 | . . . . . 2 . Miscellaneous . | . . . . . . . Route ------- -11/Scrapyard -10/Materials (discovered 4 exits: Mat x3 / [*Min]) -10/Mines -9/Materials (discovered 2 exits: [*Mat] / *Min) -9/Mines (discovered 2 exits: [*Mat] / *Exi) -9/Exiles -8/Mines History --------- Turn | Location | Event 1 | -11/Scrapyard | Discovered new exit (range 0) 1 | -11/Scrapyard | Entered Materials 47 | -10/Materials | Identified exit to Materials 189 | -10/Materials | Discovered new exit (range 16) 282 | -10/Materials | Entered Mines 302 | -10/Mines | Build established: Mutant 535 | -10/Mines | Found a hidden stash of uninstalled traps 727 | -10/Mines | Discovered exit to Materials (range 12) 809 | -10/Mines | Build established: Scavenger-Mutant 828 | -10/Mines | Entered Materials 828 | -9/Materials | Accompanied by 1 ally 828 | -9/Materials | Evolved 2 slots: Utility x2 833 | -9/Materials | Led the pair of lost Derelicts to an unsafe place 966 | -9/Materials | Identified exit to Mines 1428 | -9/Materials | Discovered new exit (range 16) 1987 | -9/Materials | Entered Mines 1999 | -9/Mines | Learned Materials interactive machine intel 2144 | -9/Mines | A weapon hastily lodged in a ceiling crevice suddenly fell to the ground 2216 | -9/Mines | Discovered new exit (range 8) 2334 | -9/Mines | Deemed a non-threat by the Exiles lab entrance 2334 | -9/Mines | Discovered new exit (range 5) 2342 | -9/Mines | Entered Exiles 2380 | -9/Exiles | Met 8R-AWN 2404 | -9/Exiles | Met EX-HEX 2477 | -9/Exiles | Met EX-BIN 2495 | -9/Exiles | Aligned with FarCom system 2497 | -9/Exiles | Given EX-Vault access code 2533 | -9/Exiles | Opened EX-Vault 2540 | -9/Exiles | Found Latent Energy Streamer 2550 | -9/Exiles | Found Longsword +1 2557 | -9/Exiles | Found Gui. Plasma Cannon 2591 | -9/Exiles | Warned to stay clear of 0b10 Research branches 2667 | -9/Exiles | Attacked by the Exiles 2672 | -9/Exiles | Core integrity fell below 50% 2672 | -9/Exiles | Destroyed 8R-AWN 2687 | -9/Exiles | Found Prototype Device 2687 | -9/Exiles | Identified AS-neutralizer No. 17b 2700 | -9/Exiles | Found Prototype Ballistic Gun 2700 | -9/Exiles | Identified 8R-AWN's Boregun 2779 | -9/Exiles | Discovered new exit (range 11) 2809 | -9/Exiles | Entered Mines 2854 | -8/Mines | P1-3CE came to Exiles' defense 2865 | -8/Mines | Core integrity fell below 20% 2866 | -8/Mines | Destroyed by P1-3CE with P1-3CE's Gatling Flakker Last Messages --------------- 02856_ Knocked back. 02856_ HV Slug penetrates P1-3CE. 02856_ HV Slug penetrates Wall. 02858_ HV Slug penetrates P1-3CE. 02858_ HV Slug penetrates Wall. 02859_ Knocked back. 02860_ HV Slug penetrates P1-3CE. 02860_ HV Slug penetrates Wall. 02861_ Knocked back. 02861_ Cesium-ion Thruster destroyed. 02861_ Knocked back. 02862_ HV Slug penetrates P1-3CE. 02862_ HV Slug penetrates Wall. 02863_ Aluminum Leg destroyed. 02863_ Knocked back. 02864_ HV Slug penetrates P1-3CE. 02864_ P1-3CE suffers critical hit. 02864_ Destroyed Quantum Reactor. 02864_ HV Slug penetrates Wall. 02864_ Knocked back. Map ----- +----------------------------------------------------+ | ???????????????????????????????????? | | ????????????????????? ???????????? | | ????????????????????? ????????????? | | ???????????????????? #????????????? | | ?????????????????### ?????????????? | | ????????????????? ??????????????? | | ????????????????? #???????????????? | | ?????????????#### #???????????????? | | ????????????#"! ##??????????????? | | ???????????## #??????????????? | | ??????????## / ##?????????????? | | ?????????## ### #?????????? | | ?????????# #?????????? | | ?????????# #??????????????? | | ?????????## M## ##??????????????? | | ??????????" ### ######???????????? | | ??????????# #?# #???????????? | | ??????????# ### #### #???????????? | | ??????????# ## ##??????????????? | | ?????????## # #??????????????? | | ?????????#; # #??????????????? | | ?????????## ## ##??????????????? | | ????????## ### ##???????????????? | | ???????## #?####????????????????? | | ???????# #?????????????????????? | | ???????# @ #?????????????????????? | | ???????## #?????????????????????? | | ????????## #????????????????????? | | ?????????# #???????????????????? | | ?????????# #??????????????????? | | ?????????# #?????????????????? | | ?????????## ????????????????? | | ??????????# """ ???????????????? | | ??????????# """ ??????????????? | | ??????????? """ ?????????????? | | ??????????? ????? ????????????? | | ??????????? #?????????????????? | | ??????????? ##?????????????????? | | ??????????? #####??????????????????? | | ???????????#???????????????????????? | | ???????????????????????????????????? | | ???????????????????????????????????? | | | | | | | | | | | | | | | | | +----------------------------------------------------+ Best States ------------- Heat Dissipation 54 Energy Generation 19 Energy Capacity 310 Matter Stores 300 Matter Capacity 300 Sight Range 16 Robot Scan Range 13 Terrain Scan Range 14 Terrain Scan Density 10 Armor Coverage 150 Core Shielding 20 Evasion (%) 40 Offensive Hacking 10 Item Schematics ----------------- None Robot Schematics ------------------ None Fabricated ------------ Nothing Alien Tech Used ----------------- None Achievements -------------- None Challenges ------------ None Game ------ Seed StormMissileInterpreter Manual? 0 Play Time 00:28:25 Cumulative 120.4 hours Start 2020.12.05 @ 17:08:27 End 2020.12.05 @ 19:19:39 Sessions 1 Manual Loads 0 Difficulty Rogue Special Mode Halloween2020/ForbiddenLore Game No. 129 Rogue 122 Adventurer 0 Explorer 7 Win Type - Total 1 Types 0/0/1/0/0/0/0/0/0 Lore% 55 Gallery% 83 Achievement% 64 Wizard Run 0 Options --------- ASCII 0 Keyboard 0 Movement Numpad Keybinds 0 Fullscreen 1 Font 18/X11 Map View 76x50 Tactical HUD 1 Map Filters NONE Filters NONE Steam 1 RUN: ded6042e-b846-4908-be2b-e096ed87194e